fUSD/lending_fUSD_20250629
["ID","MTS","AMOUNT","RATE_DAILY","PERIOD"]
[368389354,1751155860416,-224.37086,0.00030136,7]
[368389355,1751155860426,-1082.13,0.00030136,9]
[368389356,1751155860436,-224.37086,0.00030136,7]
[368389357,1751155860446,-1082.13,0.00030136,9]
[368389358,1751155860456,-1082.13,0.00030136,9]
[368389359,1751155860466,-224.37086,0.00030136,7]
[368389360,1751155860476,-1082.13,0.00030136,9]
[368389361,1751155860485,-224.37086,0.00030136,7]
[368389362,1751155860495,-490.0,0.00030136,7]
[368389363,1751155860505,-490.0,0.00030136,9]
[368389364,1751155860515,-490.0,0.00030136,9]
[368389365,1751155860524,-224.37086,0.00030136,7]
[368389366,1751155860534,-490.0,0.00030136,9]
[368389367,1751155860543,-224.37086,0.00030136,7]
[368389368,1751155860553,-490.0,0.00030136,9]
[368389369,1751155860562,-224.37086,0.00030136,7]
[368389370,1751155860572,-490.0,0.00030136,9]
[368389371,1751155860581,-224.37086,0.00030136,7]
[368389372,1751155860591,-888.99,0.00030136,9]
[368389373,1751155860602,-224.37086,0.00030136,7]
[368389374,1751155860612,-490.0,0.00030136,9]
[368389375,1751155860622,-224.37086,0.00030136,7]
[368389376,1751155860632,-490.0,0.00030136,9]
[368389377,1751155860642,-490.0,0.00030136,9]
[368389378,1751155860653,-490.0,0.00030136,9]
[368389379,1751155860663,-224.37086,0.00030136,7]
[368389380,1751155860674,-619.4,0.00030136,9]
[368389381,1751155860684,-224.37086,0.00030136,7]
[368389382,1751155860694,-224.37086,0.00030136,7]
[368389383,1751155860704,-224.37086,0.00030136,7]
[368389384,1751155860717,-734.54,0.00030136,9]
[368389385,1751155860726,-490.0,0.00030136,9]
[368389386,1751155860736,-1082.13,0.00030136,9]
[368389387,1751155860746,-1082.13,0.00030136,9]
[368389388,1751155860758,-1082.2,0.00030136,9]
[368389389,1751155860786,-888.48,0.00030136,9]
[368389390,1751155860799,-490.0,0.00030136,9]
[368389391,1751155860809,-565.05,0.00030136,9]
[368389392,1751155860819,-490.0,0.00030136,9]
[368389393,1751155860830,-490.0,0.00030136,9]
[368389394,1751155860839,-490.0,0.00030136,9]
[368389395,1751155860850,-934.08,0.00030136,9]
[368389396,1751155860860,-573.96,0.00030136,9]
[368389397,1751155860870,-492.75413123,0.00030136,9]
[368389398,1751155860880,-490.0,0.00030136,9]
[368389399,1751155860890,-1650.97,0.00030136,9]
[368389400,1751155860900,-2868.0,0.00030136,9]
[368389401,1751155860911,-490.0,0.00030136,9]
[368389402,1751155860921,-490.0,0.00030136,9]
[368389403,1751155860932,-490.0,0.00030136,9]
[368389404,1751155860942,-625.18412624,0.00030136,9]
[368389405,1751155860952,-490.0,0.00030136,9]
[368389406,1751155860963,-1718.76,0.00030136,9]
[368389407,1751155860973,-608.12,0.00030136,9]
[368389408,1751155860983,-490.0,0.00030136,9]
[368389409,1751155860994,-490.0,0.00030136,9]
[368389410,1751155861005,-490.0,0.00030136,9]
[368389411,1751155861015,-1413.6,0.00030136,9]
[368389412,1751155861025,-1722.42,0.00030136,9]
[368389413,1751155861036,-1066.58,0.00030136,9]
[368389414,1751155861046,-490.0,0.00030136,9]
[368389415,1751155861056,-1237.09,0.00030136,9]
[368389416,1751155861067,-1664.85,0.00030136,9]
[368389417,1751155861076,-920.08,0.00030136,9]
[368389418,1751155861087,-490.0,0.00030136,9]
[368389419,1751155861097,-490.0,0.00030136,9]
[368389420,1751155861107,-490.0,0.00030136,9]
[368389421,1751155861117,-1947.57,0.00030136,9]
[368389422,1751155861127,-492.80144213,0.00030136,9]
[368389423,1751155861137,-561.46,0.00030136,9]
[368389424,1751155861147,-490.0,0.00030136,9]
[368389425,1751155861157,-490.0,0.00030136,9]
[368389426,1751155861167,-490.0,0.00030136,9]
[368389427,1751155861176,-1369.16,0.00030136,9]
[368389428,1751155861186,-151.0,0.00030136,7]
[368389429,1751155861197,-151.0,0.00030136,7]
[368389430,1751155861207,-490.0,0.00030136,9]
[368389431,1751155861217,-151.0,0.00030136,7]
[368389432,1751155861227,-1602.25,0.00030136,9]
[368389433,1751155861236,-151.0,0.00030136,7]
[368389434,1751155861246,-570.55,0.00030136,9]
[368389435,1751155861257,-490.0,0.00030136,9]
[368389436,1751155861266,-2448.3,0.00030136,9]
[368389437,1751155861276,-490.0,0.00030136,9]
[368389438,1751155861286,-490.0,0.00030136,9]
[368389439,1751155861296,-151.0,0.00030136,7]
[368389440,1751155861306,-490.0,0.00030136,9]
[368389441,1751155861316,-151.0,0.00030136,7]
[368389442,1751155861326,-151.0,0.00030136,7]
[368389443,1751155861336,-192.13282865,0.00030136,7]
[368389444,1751155861346,-151.0,0.00030136,7]
[368389445,1751155861357,-490.0,0.00030136,9]
[368389446,1751155861367,-575.96,0.00030136,9]
[368389447,1751155861377,-490.0,0.00030136,9]
[368389448,1751155861387,-152.230532,0.00030136,7]
[368389449,1751155861396,-151.0,0.00030136,7]
[368389450,1751155861406,-151.0,0.00030136,7]
[368389451,1751155861416,-490.0,0.00030136,9]
[368389452,1751155861426,-151.0,0.00030136,7]
[368389453,1751155861435,-490.0,0.00030136,9]
[368389454,1751155861445,-151.0,0.00030136,7]
[368389455,1751155861455,-151.0,0.00030136,7]
[368389456,1751155861465,-490.0,0.00030136,9]
[368389457,1751155861475,-490.0,0.00030136,9]
[368389458,1751155861484,-151.0,0.00030136,7]
[368389459,1751155861494,-622.11,0.00030136,9]
[368389460,1751155861504,-151.0,0.00030136,7]
[368389461,1751155861514,-151.0,0.00030136,7]
[368389462,1751155861524,-490.0,0.00030136,9]
[368389463,1751155861534,-1343.47,0.00030136,9]
[368389464,1751155861543,-490.0,0.00030136,9]
[368389465,1751155861553,-151.0,0.00030136,7]
[368389466,1751155861563,-490.0,0.00030136,9]
[368389467,1751155861572,-1182.31,0.00030136,9]
[368389468,1751155861582,-1183.21,0.00030136,9]
[368389469,1751155861592,-151.0,0.00030136,7]
[368389470,1751155861602,-624.07,0.00030136,9]
[368389471,1751155861612,-490.0,0.00030136,9]
[368389472,1751155861622,-624.07,0.00030136,9]
[368389473,1751155861632,-258.044836,0.00030136,7]
[368389474,1751155861642,-624.07,0.00030136,9]
[368389475,1751155861652,-490.0,0.00030136,9]
[368389476,1751155861662,-624.07,0.00030136,9]
[368389477,1751155861672,-1328.82,0.00030136,9]
[368389478,1751155861682,-624.07,0.00030136,9]
[368389479,1751155861692,-624.07,0.00030136,9]
[368389480,1751155861701,-624.07,0.00030136,9]
[368389481,1751155861711,-624.07,0.00030136,9]
[368389482,1751155861722,-624.07,0.00030136,9]
[368389483,1751155861732,-490.0,0.00030136,9]
[368389484,1751155861744,-624.07,0.00030136,9]
[368389485,1751155861756,-624.07,0.00030136,9]
[368389486,1751155861765,-1780.45,0.00030136,9]
[368389487,1751155861775,-624.07,0.00030136,9]
[368389488,1751155861785,-624.07,0.00030136,9]
[368389489,1751155861795,-624.07,0.00030136,9]
[368389490,1751155861805,-624.07,0.00030136,9]
[368389491,1751155861815,-490.0,0.00030136,9]
[368389492,1751155861825,-624.07,0.00030136,9]
[368389493,1751155861834,-490.0,0.00030136,9]
[368389494,1751155861845,-624.07,0.00030136,9]
[368389495,1751155861855,-624.07,0.00030136,9]
[368389496,1751155861865,-490.0,0.00030136,9]
[368389497,1751155861875,-624.07,0.00030136,9]
[368389498,1751155861887,-624.07,0.00030136,9]
[368389499,1751155861897,-624.07,0.00030136,9]
[368389500,1751155861908,-490.0,0.00030136,9]
[368389501,1751155861918,-490.0,0.00030136,9]
[368389502,1751155861929,-624.07,0.00030136,9]
[368389503,1751155861940,-494.33,0.00030136,9]
[368389504,1751155861951,-624.07,0.00030136,9]
[368389505,1751155861961,-624.27218496,0.00030136,9]
[368389506,1751155861972,-490.0,0.00030136,9]
[368389507,1751155861982,-429.17337639,0.00030136,9]
[368389508,1751155861993,-490.0,0.00030136,9]
[368389509,1751155862004,-490.0,0.00030136,9]
[368389510,1751155862014,-490.0,0.00030136,9]
[368389511,1751155862025,-1966.95,0.00030136,9]
[368389512,1751155862035,-490.0,0.00030136,9]
[368389513,1751155862046,-169.06851751,0.00030136,9]
[368389514,1751155862058,-490.0,0.00030136,9]
[368389515,1751155862077,-1562.35,0.00030136,9]
[368389516,1751155862088,-490.0,0.00030136,9]
[368389517,1751155862099,-787.42,0.00030136,9]
[368389518,1751155862378,-2982.43,0.00030136,9]
[368389519,1751155862389,-2646.23,0.00030136,9]
[368389520,1751155862398,-490.0,0.00030136,9]
[368389521,1751155862407,-490.0,0.00030136,9]
[368389522,1751155862417,-490.0,0.00030136,9]
[368389523,1751155862427,-490.0,0.00030136,9]
[368389524,1751155862436,-151.0,0.00030136,7]
[368389525,1751155862446,-1052.53,0.00030136,9]
[368389526,1751155862455,-490.0,0.00030136,9]
[368389527,1751155862464,-1052.53,0.00030136,9]
[368389528,1751155862473,-151.0,0.00030136,7]
[368389529,1751155862483,-1052.53,0.00030136,9]
[368389530,1751155862492,-1805.11,0.00030136,9]
[368389531,1751155862501,-490.0,0.00030136,9]
[368389532,1751155862511,-1052.53,0.00030136,9]
[368389533,1751155862520,-1052.53,0.00030136,9]
[368389534,1751155862530,-1052.53,0.00030136,9]
[368389535,1751155862539,-490.0,0.00030136,9]
[368389536,1751155862548,-1052.53,0.00030136,9]
[368389537,1751155862558,-1052.53,0.00030136,9]
[368389538,1751155862567,-490.0,0.00030136,9]
[368389539,1751155862577,-1052.53,0.00030136,9]
[368389540,1751155862587,-1052.53,0.00030136,9]
[368389541,1751155862596,-1052.53,0.00030136,9]
[368389542,1751155862605,-1052.53,0.00030136,9]
[368389543,1751155862615,-543.033394,0.00030136,7]
[368389544,1751155862625,-1052.53,0.00030136,9]
[368389545,1751155862636,-490.0,0.00030136,9]
[368389546,1751155862646,-543.033394,0.00030136,7]
[368389547,1751155862655,-543.033394,0.00030136,7]
[368389548,1751155862666,-892.81,0.00030136,9]
[368389549,1751155862675,-490.0,0.00030136,9]
[368389550,1751155862684,-151.0,0.00030136,7]
[368389551,1751155862693,-543.033394,0.00030136,7]
[368389552,1751155862702,-151.0,0.00030136,7]
[368389553,1751155862713,-490.0,0.00030136,9]
[368389554,1751155862723,-1706.84,0.00030136,9]
[368389555,1751155862734,-543.033394,0.00030136,7]
[368389556,1751155862743,-151.0,0.00030136,7]
[368389557,1751155862755,-771.8,0.00030136,9]
[368389558,1751155862764,-543.033394,0.00030136,7]
[368389559,1751155862774,-151.0,0.00030136,7]
[368389560,1751155862783,-543.033394,0.00030136,7]
[368389561,1751155862796,-151.0,0.00030136,7]
[368389562,1751155862806,-490.0,0.00030136,9]
[368389563,1751155862816,-490.0,0.00030136,9]
[368389564,1751155862825,-151.0,0.00030136,7]
[368389565,1751155862835,-500.0,0.00030136,9]
[368389566,1751155862844,-151.0,0.00030136,7]
[368389567,1751155862854,-490.0,0.00030136,9]
[368389568,1751155862864,-151.0,0.00030136,7]
[368389569,1751155862873,-2066.73,0.00030136,9]
[368389570,1751155862884,-151.0,0.00030136,7]
[368389571,1751155862894,-490.0,0.00030136,9]
[368389572,1751155862904,-151.0,0.00030136,7]
[368389573,1751155862913,-543.033394,0.00030136,7]
[368389574,1751155862923,-301.822609,0.00030136,7]
[368389575,1751155862933,-490.0,0.00030136,9]
[368389576,1751155862942,-490.0,0.00030136,9]
[368389577,1751155862951,-1220.93,0.00030136,9]
[368389578,1751155862961,-490.0,0.00030136,9]
[368389579,1751155862970,-609.65,0.00030136,9]
[368389580,1751155862981,-730.08,0.00030136,9]
[368389581,1751155862991,-2811.27,0.00030136,9]
[368389582,1751155863001,-167.676235,0.00030136,9]
[368389583,1751155863010,-490.0,0.00030136,9]
[368389584,1751155863019,-490.0,0.00030136,9]
[368389585,1751155863029,-490.0,0.00030136,9]
[368389586,1751155863038,-490.0,0.00030136,9]
[368389587,1751155863047,-490.0,0.00030136,9]
[368389588,1751155863057,-490.0,0.00030136,9]
[368389589,1751155863066,-490.0,0.00030136,9]
[368389590,1751155863075,-490.0,0.00030136,9]
[368389591,1751155863084,-859.330773,0.00030136,7]
[368389592,1751155863093,-490.0,0.00030136,9]
[368389593,1751155863103,-859.330773,0.00030136,7]
[368389594,1751155863113,-490.0,0.00030136,9]
[368389595,1751155863123,-2413.91,0.00030136,9]
[368389596,1751155863132,-859.330773,0.00030136,7]
[368389597,1751155863142,-490.0,0.00030136,9]
[368389598,1751155863151,-859.330773,0.00030136,7]
[368389599,1751155863161,-1344.38,0.00030136,9]
[368389600,1751155863170,-859.330773,0.00030136,7]
[368389601,1751155863180,-490.0,0.00030136,9]
[368389602,1751155863189,-490.0,0.00030136,9]
[368389603,1751155863198,-490.0,0.00030136,9]
[368389604,1751155863207,-859.330773,0.00030136,7]
[368389605,1751155863216,-490.0,0.00030136,9]
[368389606,1751155863225,-859.330773,0.00030136,7]
[368389607,1751155863234,-859.330773,0.00030136,7]
[368389608,1751155863244,-859.330773,0.00030136,7]
[368389609,1751155863253,-490.0,0.00030136,9]
[368389610,1751155863263,-859.330773,0.00030136,7]
[368389611,1751155863273,-490.0,0.00030136,9]
[368389612,1751155863283,-859.330773,0.00030136,7]
[368389613,1751155863292,-543.033394,0.00030136,7]
[368389614,1751155863302,-859.330773,0.00030136,7]
[368389615,1751155863312,-543.033394,0.00030136,7]
[368389616,1751155863321,-526.86,0.00030136,9]
[368389617,1751155863331,-859.330773,0.00030136,7]
[368389618,1751155863341,-543.033394,0.00030136,7]
[368389619,1751155863353,-490.0,0.00030136,9]
[368389620,1751155863363,-1374.01,0.00030136,9]
[368389621,1751155863373,-543.033394,0.00030136,7]
[368389622,1751155863383,-151.0,0.00030136,7]
[368389623,1751155863392,-543.033394,0.00030136,7]
[368389624,1751155863402,-859.330773,0.00030136,7]
[368389625,1751155863411,-549.7,0.00030136,9]
[368389626,1751155863421,-151.0,0.00030136,7]
[368389627,1751155863431,-543.033394,0.00030136,7]
[368389628,1751155863441,-1599.44,0.00030136,9]
[368389629,1751155863451,-490.0,0.00030136,9]
[368389630,1751155863461,-151.0,0.00030136,7]
[368389631,1751155863471,-859.330773,0.00030136,7]
[368389632,1751155863481,-543.033394,0.00030136,7]
[368389633,1751155863490,-644.66,0.00030136,9]
[368389634,1751155863500,-151.0,0.00030136,7]
[368389635,1751155863510,-490.0,0.00030136,9]
[368389636,1751155863519,-543.033394,0.00030136,7]
[368389637,1751155863530,-859.330773,0.00030136,7]
[368389638,1751155863539,-151.0,0.00030136,7]
[368389639,1751155863549,-2187.29,0.00030136,9]
[368389640,1751155863559,-859.330773,0.00030136,7]
[368389641,1751155863569,-151.0,0.00030136,7]
[368389642,1751155863578,-490.0,0.00030136,9]
[368389643,1751155863588,-490.0,0.00030136,9]
[368389644,1751155863598,-859.330774,0.00030136,7]
[368389645,1751155863608,-151.0,0.00030136,7]
[368389646,1751155863617,-151.0,0.00030136,7]
[368389647,1751155863628,-2199.83,0.00030136,9]
[368389648,1751155863637,-151.0,0.00030136,7]
[368389649,1751155863649,-1937.84,0.00030136,9]
[368389650,1751155863660,-152.674693,0.00030136,7]
[368389651,1751155863670,-2740.05,0.00030136,9]
[368389652,1751155863680,-490.0,0.00030136,9]
[368389653,1751155863691,-858.89,0.00030136,9]
[368389654,1751155863701,-1417.01,0.00030136,9]
[368389655,1751155863715,-490.0,0.00030136,9]
[368389656,1751155863731,-490.0,0.00030136,9]
[368389657,1751155863741,-490.0,0.00030136,9]
[368389658,1751155863751,-490.0,0.00030136,9]
[368389659,1751155863762,-490.0,0.00030136,9]
[368389660,1751155863772,-490.0,0.00030136,9]
[368389661,1751155863782,-490.0,0.00030136,9]
[368389662,1751155863792,-1469.9,0.00030136,9]
[368389663,1751155863803,-1286.25,0.00030136,9]
[368389664,1751155863813,-2815.57,0.00030136,9]
[368389665,1751155863823,-490.0,0.00030136,9]
[368389666,1751155863833,-588.0,0.00030136,9]
[368389667,1751155863843,-1333.21,0.00030136,9]
[368389668,1751155863853,-1606.44,0.00030136,9]
[368389669,1751155863863,-490.0,0.00030136,9]
[368389670,1751155863874,-785.93,0.00030136,9]
[368389671,1751155863885,-490.0,0.00030136,9]
[368389672,1751155863895,-413.36428208,0.00030136,9]
[368389673,1751155863905,-490.0,0.00030136,9]
[368389674,1751155863915,-218.07875478,0.00030136,9]
[368389675,1751155863925,-490.0,0.00030136,9]
[368389676,1751155863936,-534.06,0.00030136,9]
[368389677,1751155863946,-490.0,0.00030136,9]
[368389678,1751155863956,-1505.15,0.00030136,9]
[368389679,1751155863967,-490.0,0.00030136,9]
[368389680,1751155863978,-817.99,0.00030136,9]
[368389681,1751155863988,-490.0,0.00030136,9]
[368389682,1751155863998,-634.71,0.00030136,9]
[368389683,1751155864009,-792.99,0.00030136,9]
[368389684,1751155864019,-490.0,0.00030136,9]
[368389685,1751155864029,-977.13,0.00030136,9]
[368389686,1751155864039,-490.0,0.00030136,9]
[368389687,1751155864049,-490.0,0.00030136,9]
[368389688,1751155864059,-1271.63,0.00030136,9]
[368389689,1751155864070,-490.0,0.00030136,9]
[368389690,1751155864079,-490.0,0.00030136,9]
[368389691,1751155864089,-490.0,0.00030136,9]
[368389692,1751155864099,-151.0,0.00030136,7]
[368389693,1751155864109,-151.0,0.00030136,7]
[368389694,1751155864119,-151.0,0.00030136,7]
[368389695,1751155864129,-490.0,0.00030136,9]
[368389696,1751155864139,-151.0,0.00030136,7]
[368389697,1751155864148,-151.0,0.00030136,7]
[368389698,1751155864159,-151.0,0.00030136,7]
[368389699,1751155864168,-151.0,0.00030136,7]
[368389700,1751155864178,-232.729787,0.00030136,7]
[368389701,1751155864187,-151.0,0.00030136,7]
[368389702,1751155864197,-151.0,0.00030136,7]
[368389703,1751155864207,-490.0,0.00030136,9]
[368389704,1751155864217,-231.924258,0.00030136,7]
[368389705,1751155864226,-490.0,0.00030136,9]
[368389706,1751155864235,-565.60114916,0.00030136,9]
[368389707,1751155864245,-490.0,0.00030136,9]
[368389708,1751155864254,-490.0,0.00030136,9]
[368389709,1751155864264,-587.28,0.00030136,9]
[368389710,1751155864274,-490.0,0.00030136,9]
[368389711,1751155864284,-490.0,0.00030136,9]
[368389712,1751155864295,-490.0,0.00030136,9]
[368389713,1751155864304,-490.0,0.00030136,9]
[368389714,1751155864314,-490.0,0.00030136,9]
[368389715,1751155864324,-490.0,0.00030136,9]
[368389716,1751155864334,-588.05,0.00030136,9]
[368389717,1751155864344,-151.0,0.00030136,7]
[368389718,1751155864354,-151.0,0.00030136,7]
[368389719,1751155864364,-151.0,0.00030136,7]
[368389720,1751155864374,-490.0,0.00030136,9]
[368389721,1751155864383,-151.0,0.00030136,7]
[368389722,1751155864393,-151.0,0.00030136,7]
[368389723,1751155864402,-250.780447,0.00030136,7]
[368389724,1751155864412,-490.0,0.00030136,9]
[368389725,1751155864422,-151.0,0.00030136,7]
[368389726,1751155864432,-151.0,0.00030136,7]
[368389727,1751155864442,-151.0,0.00030136,7]
[368389728,1751155864451,-151.0,0.00030136,7]
[368389729,1751155864461,-154.012546,0.00030136,7]
[368389730,1751155864471,-2308.5,0.00030136,9]
[368389731,1751155864480,-490.0,0.00030136,9]
[368389732,1751155864490,-490.0,0.00030136,9]
[368389733,1751155864500,-490.0,0.00030136,9]
[368389734,1751155864510,-251.336629,0.00030136,7]
[368389735,1751155864521,-490.0,0.00030136,9]
[368389736,1751155864531,-910.39,0.00030136,9]
[368389737,1751155864542,-490.0,0.00030136,9]
[368389738,1751155864552,-490.0,0.00030136,9]
[368389739,1751155864562,-2184.78,0.00030136,9]
[368389740,1751155864571,-1549.92,0.00030136,9]
[368389741,1751155864581,-490.0,0.00030136,9]
[368389742,1751155864590,-490.0,0.00030136,9]
[368389743,1751155864599,-490.0,0.00030136,9]
[368389744,1751155864609,-1472.89,0.00030136,9]
[368389745,1751155864619,-490.0,0.00030136,9]
[368389746,1751155864628,-1207.48,0.00030136,9]
[368389747,1751155864637,-490.0,0.00030136,9]
[368389748,1751155864647,-490.0,0.00030136,9]
[368389749,1751155864656,-1428.86,0.00030136,9]
[368389750,1751155864666,-490.0,0.00030136,9]
[368389751,1751155864675,-490.0,0.00030136,9]
[368389752,1751155864685,-490.0,0.00030136,9]
[368389753,1751155864694,-490.0,0.00030136,9]
[368389754,1751155864806,-490.0,0.00030136,9]
[368389755,1751155864818,-490.0,0.00030136,9]
[368389756,1751155864827,-490.0,0.00030136,9]
[368389757,1751155864838,-490.0,0.00030136,9]
[368389758,1751155864849,-934.01,0.00030136,9]
[368389759,1751155864858,-490.0,0.00030136,9]
[368389760,1751155864868,-525.46,0.00030136,9]
[368389761,1751155864878,-490.0,0.00030136,9]
[368389762,1751155864887,-490.0,0.00030136,9]
[368389763,1751155864896,-152.606705,0.00030136,7]
[368389764,1751155864905,-490.0,0.00030136,9]
[368389765,1751155864914,-490.0,0.00030136,9]
[368389766,1751155864924,-490.0,0.00030136,9]
[368389767,1751155864933,-490.0,0.00030136,9]
[368389768,1751155864942,-490.0,0.00030136,9]
[368389769,1751155864952,-500.0,0.00030136,9]
[368389770,1751155864961,-500.0,0.00030136,9]
[368389771,1751155864971,-490.0,0.00030136,9]
[368389772,1751155864980,-490.0,0.00030136,9]
[368389773,1751155864989,-1662.56,0.00030136,9]
[368389774,1751155864999,-189.99940415,0.00030136,9]
[368389775,1751155865008,-3554.55,0.00030136,9]
[368389776,1751155865018,-490.0,0.00030136,9]
[368389777,1751155865027,-490.0,0.00030136,9]
[368389778,1751155865036,-490.0,0.00030136,9]
[368389779,1751155865046,-634.0,0.00030136,9]
[368389780,1751155865055,-490.0,0.00030136,9]
[368389781,1751155865064,-151.0,0.00030136,7]
[368389782,1751155865074,-2000.87,0.00030136,9]
[368389783,1751155865083,-329.30672717,0.00030136,9]
[368389784,1751155865092,-1290.28,0.00030136,9]
[368389785,1751155865102,-151.0,0.00030136,7]
[368389786,1751155865112,-490.0,0.00030136,9]
[368389787,1751155865122,-930.12,0.00030136,9]
[368389788,1751155865131,-490.0,0.00030136,9]
[368389789,1751155865141,-978.52,0.00030136,9]
[368389790,1751155865152,-490.0,0.00030136,9]
[368389791,1751155865162,-151.0,0.00030136,7]
[368389792,1751155865171,-490.0,0.00030136,9]
[368389793,1751155865180,-151.0,0.00030136,7]
[368389794,1751155865189,-151.0,0.00030136,7]
[368389795,1751155865199,-490.0,0.00030136,9]
[368389796,1751155865209,-151.0,0.00030136,7]
[368389797,1751155865220,-490.0,0.00030136,9]
[368389798,1751155865230,-151.0,0.00030136,7]
[368389799,1751155865239,-490.0,0.00030136,9]
[368389800,1751155865248,-151.0,0.00030136,7]
[368389801,1751155865257,-151.0,0.00030136,7]
[368389802,1751155865267,-1778.99,0.00030136,9]
[368389803,1751155865276,-6620.51,0.00030136,9]
[368389804,1751155865286,-154.922941,0.00030136,7]
[368389805,1751155865295,-490.0,0.00030136,9]
[368389806,1751155865304,-724.73,0.00030136,9]
[368389807,1751155865313,-490.0,0.00030136,9]
[368389808,1751155865323,-1353.53,0.00030136,9]
[368389809,1751155865332,-491.55244174,0.00030136,9]
[368389810,1751155865341,-1360.77,0.00030136,9]
[368389811,1751155865350,-551.99,0.00030136,9]
[368389812,1751155865359,-490.0,0.00030136,9]
[368389813,1751155865368,-490.0,0.00030136,9]
[368389814,1751155865379,-1327.21,0.00030136,9]
[368389815,1751155865389,-498.9,0.00030136,9]
[368389816,1751155865398,-2395.44,0.00030136,9]
[368389817,1751155865407,-490.0,0.00030136,9]
[368389818,1751155865416,-971.42,0.00030136,9]
[368389819,1751155865426,-490.0,0.00030136,9]
[368389820,1751155865436,-639.10683548,0.00030136,9]
[368389821,1751155865447,-490.0,0.00030136,9]
[368389822,1751155865457,-490.0,0.00030136,9]
[368389823,1751155865466,-490.0,0.00030136,9]
[368389824,1751155865475,-490.0,0.00030136,9]
[368389825,1751155865484,-490.0,0.00030136,9]
[368389826,1751155865493,-490.0,0.00030136,9]
[368389827,1751155865503,-1000.04,0.00030136,9]
[368389828,1751155865512,-490.0,0.00030136,9]
[368389829,1751155865521,-490.0,0.00030136,9]
[368389830,1751155865530,-1307.5,0.00030136,9]
[368389831,1751155865539,-1205.05,0.00030136,9]
[368389832,1751155865548,-490.0,0.00030136,9]
[368389833,1751155865558,-490.0,0.00030136,9]
[368389834,1751155865567,-490.0,0.00030136,9]
[368389835,1751155865576,-795.73,0.00030136,9]
[368389836,1751155865585,-503.47795081,0.00030136,9]
[368389837,1751155865594,-490.13854356,0.00030136,9]
[368389838,1751155865603,-490.0,0.00030136,9]
[368389839,1751155865613,-490.0,0.00030136,9]
[368389840,1751155865622,-490.0,0.00030136,9]
[368389841,1751155865631,-1502.59,0.00030136,9]
[368389842,1751155865640,-490.0,0.00030136,9]
[368389843,1751155865649,-2671.79,0.00030136,9]
[368389844,1751155865659,-367.13819799,0.00030136,9]
[368389845,1751155865668,-490.0,0.00030136,9]
[368389846,1751155865677,-490.0,0.00030136,9]
[368389847,1751155865686,-490.0,0.00030136,9]
[368389848,1751155865696,-490.0,0.00030136,9]
[368389849,1751155865705,-951.11,0.00030136,9]
[368389850,1751155865721,-3047.79,0.00030136,9]
[368389851,1751155865731,-490.0,0.00030136,9]
[368389852,1751155865740,-1000.0,0.00030136,9]
[368389853,1751155865749,-437.56746593,0.00030136,9]